Cogmind - Beta 16.1 @@@ ROGUE MODE // 2026.04.28 @ 06:55:10 // Winter2019/RPGLIKE Player: FL-IST Result: Self-destructed Performance ------------- Evolutions (4) 2000 Regions Visited (6) 1200 Robots Destroyed (67) 335 Value Destroyed (1738) 1738 Prototype IDs (18) 360 Alien Tech Used (0) 0 Bonus (-603) -603 TOTAL SCORE: 5030 Bonus ------- Follower Combat Kills 58 Friendly Fire -661 Cogmind --------- Core Integrity 18/600 Matter 290/300 Energy 96/100 System Corruption 0% Temperature Cool (0) Movement Hovering (56) Location -6/Factory Parts ------- > --- POWER (1) -------- (None) > --- PROPULSION (3) --- Improved Hover Unit Improved Hover Unit > --- UTILITY (2) ------ Cooling System Tech Extrapolator > --- WEAPON (2) ------- Particle Cannon > --- INVENTORY (4) ---- Scrap Shield Tower Shield Peak State ------------ > --- POWER ------------ Light Nuclear Core > --- PROPULSION ------- Improved Hover Unit Improved Hover Unit Improved Hover Unit > --- UTILITY ---------- Bomb Drone Bay > --- WEAPON ----------- Beamcaster Particle Cannon > --- INVENTORY -------- (None) [Rating: 30] Favorites ----------- Power Light Nuclear Core Engine Ion Engine Power Core Light Nuclear Core Propulsion Improved Hover Unit Treads Light Treads Wheel Compact Wheel Hover Unit Improved Hover Unit Utility Improved Heat Sink Device Improved Heat Sink Processor Tech Extrapolator Weapon Particle Cannon Energy Gun Beamcaster Energy Cannon Particle Cannon Ballistic Gun Light Assault Rifle Build | -11 -10 -10 -10 -9 -9 -6 ------- Run | Yrd Mat Min Sub Rec Scr Fac Slots Evolved 4 | 3 1 . . . . . Power . | . . . . . . . Propulsion 2 | 1 1 . . . . . Utility 1 | 1 . . . . . . Weapon 1 | 1 . . . . . . Parts Attached 23 | 6 12 1 2 1 1 . Power 2 | 1 1 . . . . . Engine 1 | 1 . . . . . . Core 1 | . 1 . . . . . Reactor . | . . . . . . . Propulsion 6 | 2 4 . . . . . Treads 2 | 1 1 . . . . . Leg . | . . . . . . . Wheel 1 | 1 . . . . . . Hover 3 | . 3 . . . . . Flight . | . . . . . . . Utility 6 | 1 1 . 2 1 1 . Device 5 | 1 1 . 2 1 . . Storage . | . . . . . . . Processor 1 | . . . . . 1 . Hackware . | . . . . . . . Protection . | . . . . . . . Artifact . | . . . . . . . Weapon 9 | 2 6 1 . . . . Energy Gun 3 | . 2 1 . . . . Energy Cannon 4 | . 4 . . . . . Ballistic Gun 2 | 2 . . . . . . Ballistic Cannon . | . . . . . . . Launcher . | . . . . . . . Special Weapon . | . . . . . . . Impact Weapon . | . . . . . . . Slashing Weapon . | . . . . . . . Piercing Weapon . | . . . . . . . Special Melee Weapon . | . . . . . . . Unidentified Prototypes 3 | . 1 . 2 . . . Parts Lost 1 | . . . . . 1 . Power 1 | . . . . . 1 . Propulsion . | . . . . . . . Utility . | . . . . . . . Weapon . | . . . . . . . Highest Loss Streak 1 | . . . . . 1 . To Critical Strikes 1 | . . . . . 1 . Average Backups 1 | . . 1 1 2 2 2 Power . | . . . . . . . Propulsion . | . . . . . . . Utility 1 | . . . 1 2 2 2 Weapon . | . . . . . . . Tool/Special . | . . . . . . . Unused Backups 3 | . . . 1 . . 2 Power . | . . . . . . . Propulsion . | . . . . . . . Utility 2 | . . . . . . 2 Weapon 1 | . . . 1 . . . Tool/Special . | . . . . . . . Average Slot Usage (%) 97 | . 95 99 99 100 88 62 Engine 1 | . 3 . . . . . Core 11 | . 9 12 12 12 11 . Treads 4 | . 15 . . . . . Hover 30 | . 14 37 37 37 37 25 Device 23 | . 22 25 24 25 14 12 Energy Gun 8 | . 1 5 12 12 11 . Energy Cannon 14 | . 18 19 12 12 12 12 Ballistic Gun 1 | . 6 . . . . . Peak Build Rating 30 | 6 17 21 30 24 23 16 Average Rating 19 | 4 12 19 23 23 20 16 On Entrance 15 | . 6 17 21 24 23 16 Avg Prop Armor Cover (%) 15 | 15 15 . . . . . Naked Turns . | . . . . . . . Heaviest Build 17 | 8 15 16 16 17 17 6 Greatest Support 40 | 20 40 21 21 21 21 14 Greatest Overweight (x) 2 | . 2 . . . . . Average Overweight (x) . | . . . . . . . Largest Inventory Capacity 4 | . . 3 4 4 4 4 Average Capacity 2 | . . 2 3 4 4 4 Most Carried 4 | . . 3 4 4 4 4 Average Carried 2 | . . 2 3 4 4 4 Final Capacity 4 | . . 3 4 4 4 4 Final Carried 4 | . . 3 4 4 4 4 Class Distribution -------------------- 76% | Mutant 23% | Scavenger-Mutant Dominant Class ---------------- Mutant | -10/Materials Mutant | -10/Mines Mutant | -10/Subcaves Mutant | -9/Recycling Mutant | -9/Scraptown Mutant | -6/Factory Resources | -11 -10 -10 -10 -9 -9 -6 ----------- Run | Yrd Mat Min Sub Rec Scr Fac Matter Collected 570 | 312 198 10 40 10 . . Remotely . | . . . . . . . Salvage Created 3080 | 124 1069 550 753 458 126 . Parts 157 | 13 61 22 32 21 8 . Haulers Intercepted 2 | . 2 . . . . . Recyclers Shooed 2 | 1 1 . . . . . Parts Field Recycled . | . . . . . . . Retrieved Matter . | . . . . . . . Parts Self-Destructed 20 | . . . 20 . . . Prevented . | . . . . . . . Parts Restored . | . . . . . . . Kills | -11 -10 -10 -10 -9 -9 -6 ------- Run | Yrd Mat Min Sub Rec Scr Fac Combat Hostiles Destroyed 39 | . 20 5 9 5 . . Guns 18 | . 9 1 5 3 . . Cannons 19 | . 9 4 4 2 . . Classes Destroyed 14 | 2 5 1 3 2 1 . Worker 4 | . 4 . . . . . Tunneler 6 | 5 1 . . . . . Hauler 2 | . 2 . . . . . Recycler 8 | 1 . 3 . 4 . . Operator 2 | . 2 . . . . . Turret 1 | . . . 1 . . . Watcher 2 | . 2 . . . . . Grunt 24 | . 20 4 . . . . Duelist 1 | . . . . 1 . . Sentry 5 | . . 1 1 3 . . Programmer 1 | . . . . 1 . . Cobbler 1 | . . . 1 . . . Subdweller 8 | . . . 8 . . . Scientist 1 | . . . . . 1 . Thug 3 | . . 3 . . . . Best Kill Streak 6 | 6 5 2 2 2 1 . Combat Bots Only 4 | . 4 2 2 1 . . Max Kills in Single Turn 2 | 1 2 1 1 2 1 . Gunslinging . | . . . . . . . Exploded . | . . . . . . . Melee . | . . . . . . . Uniques/NPCs Destroyed . | . . . . . . . Combat | -11 -10 -10 -10 -9 -9 -6 -------- Run | Yrd Mat Min Sub Rec Scr Fac Hostile Shots Fired 271 | . 61 13 73 13 111 . Missed 102 | . 8 5 35 5 49 . Hits 169 | . 53 8 38 8 62 . Melee 15 | . . . . . 15 . Projectile 154 | . 53 8 38 8 47 . Critical Strikes 7 | . 1 . 1 . 5 . Damage Taken 2547 | . 846 120 713 117 751 . Core 2032 | . 680 95 581 94 582 . Absorbed by Shields . | . . . . . . . Redirected to Core 1667 | . 556 78 473 79 481 . Core Remaining (%) 51 | 100 . . . . 3 . Volleys Fired 238 | 27 89 31 67 21 3 . Largest 2 | 2 2 2 2 2 2 . Hottest 143 | 40 136 143 143 143 143 . Shots Fired 474 | 54 176 62 134 42 6 . Gun 245 | 54 90 10 67 21 3 . Cannon 229 | . 86 52 67 21 3 . Launcher . | . . . . . . . Special . | . . . . . . . Kinetic 130 | 54 76 . . . . . Thermal 344 | . 100 62 134 42 6 . Explosive . | . . . . . . . Electromagnetic . | . . . . . . . Robot Hit Streak 27 | 13 17 10 24 27 5 . Robot Miss Streak 5 | 2 5 3 2 3 . . Penetration Max . | . . . . . . . Secondary Targets 2 | . 2 . . . . . Max Gunslinging Chain 1 | . 1 . . . . . Shots Hit Robots 299 | 38 110 37 85 25 4 . Core Hits 110 | 12 47 15 25 9 2 . Critical Kills 4 | . 2 2 . . . . Critical Parts Destroyed . | . . . . . . . Critical Strikes 13 | . 4 3 5 1 . . Burn 9 | . 2 1 5 1 . . Meltdown 4 | . 2 2 . . . . Melee Attacks . | . . . . . . . Impact . | . . . . . . . Slashing . | . . . . . . . Piercing . | . . . . . . . Sneak Attacks . | . . . . . . . Combat Hostiles . | . . . . . . . Follow-up Attacks . | . . . . . . . Damage Inflicted 5170 | 296 1632 799 1748 600 95 . Guns 2362 | 296 627 130 918 321 70 . Cannons 2808 | . 1005 669 830 279 25 . Explosions . | . . . . . . . Melee . | . . . . . . . Ramming . | . . . . . . . Kinetic 756 | 296 460 . . . . . Thermal 4414 | . 1172 799 1748 600 95 . Explosive . | . . . . . . . Electromagnetic . | . . . . . . . Impact . | . . . . . . . Slashing . | . . . . . . . Piercing . | . . . . . . . Highest Corruption . | . . . . . . . Average Corruption . | . . . . . . . Corruption Purged . | . . . . . . . Corruption Blocked . | . . . . . . . Overload Shots . | . . . . . . . Overflow Damage 52 | . 8 17 16 11 . . Projectiles 52 | . 8 17 16 11 . . Explosions . | . . . . . . . Melee . | . . . . . . . Knockbacks . | . . . . . . . Impact . | . . . . . . . Kinetic . | . . . . . . . Secondary . | . . . . . . . Self-Inflicted Damage . | . . . . . . . Shots . | . . . . . . . Rammed . | . . . . . . . Targets Rammed . | . . . . . . . Kicked . | . . . . . . . Crushed . | . . . . . . . Highest Temperature 302 | . 302 295 36 180 60 . Average Temperature 74 | . 75 111 5 57 25 . Received Heat Transfer 834 | . 411 63 168 27 165 . Effects 1 | . . 1 . . . . Energy Bleed 1 | . . 1 . . . . Siege Activations . | . . . . . . . Martial Activations . | . . . . . . . Shielding Activations . | . . . . . . . Robots Disrupted . | . . . . . . . Combat Hostiles . | . . . . . . . Robots Corrupted . | . . . . . . . Combat Hostiles . | . . . . . . . Parts Fried . | . . . . . . . Impact Corruptions . | . . . . . . . Robots Melted 4 | . 2 2 . . . . Combat Hostiles 2 | . 2 . . . . . Parts Melted 19 | . 6 3 8 2 . . Heat Transferred 8547 | . 2294 1480 3515 1110 148 . Parts Sabotaged . | . . . . . . . Parts Stolen 2 | . . . . . 2 . Parts Stripped . | . . . . . . . Power Chain Reactions . | . . . . . . . Alert | -11 -10 -10 -10 -9 -9 -6 ------- Run | Yrd Mat Min Sub Rec Scr Fac Maximum Alert Level 1 | . 1 . . . . . Low Security (%) 97 | 100 94 100 . 100 . 100 Level 1 2 | . 5 . . . . . Level 2 . | . . . . . . . Level 3 . | . . . . . . . Level 4 . | . . . . . . . Level 5 . | . . . . . . . High Security . | . . . . . . . Max Security . | . . . . . . . Peak Influence 237 | 10 237 128 . 124 . . Initial 88 | . . 88 . . . . Average 63 | . 72 45 . 78 . . Influence Increases 1369 | 30 641 135 264 299 . . Destroy 0b10 Robot/C 740 | . 400 100 140 100 . . Destroy 0b10 Robot/NC 120 | 30 55 15 . 20 . . Destroy Leader 128 | . 108 20 . . . . Allied During Kill 34 | . . . 34 . . . Successful Hack 58 | . 29 . . 29 . . Select Force Hacks 180 | . 30 . . 150 . . Destroy Structure 4 | . 4 . . . . . Lose Combat Pursuer 105 | . 15 . 90 . . . Influence Decreases 1369 | 30 412 338 290 228 71 . Entered New Map 226 | . . 141 14 . 71 . Time Decay 1083 | 30 412 197 216 228 . . Lost Ally 60 | . . . 60 . . . Squads Dispatched 6 | . 6 . . . . . Investigation 5 | . 5 . . . . . Extermination . | . . . . . . . Reinforcement 1 | . 1 . . . . . Assault . | . . . . . . . Garrison . | . . . . . . . Intercept . | . . . . . . . Searches Triggered . | . . . . . . . Construction Impeded . | . . . . . . . Haulers Reinforced . | . . . . . . . Active Scanning Responses . | . . . . . . . Cargo Convoy Interrupts . | . . . . . . . Stealth | -11 -10 -10 -10 -9 -9 -6 --------- Run | Yrd Mat Min Sub Rec Scr Fac Distress Signals 2 | . 2 . . . . . Communications Jammed . | . . . . . . . Distress Signals . | . . . . . . . Times Spotted 91 | . 29 5 25 5 27 . Peak Tracking Total 33 | . 4 2 6 2 33 . Tactical Retreats 6 | . 1 . 3 . 2 . Traps | -11 -10 -10 -10 -9 -9 -6 ------- Run | Yrd Mat Min Sub Rec Scr Fac Traps Triggered 5 | . 5 . . . . . Indirectly . | . . . . . . . Trap Hack Attempts . | . . . . . . . Triggered . | . . . . . . . Disarmed . | . . . . . . . Reprogrammed . | . . . . . . . Reused . | . . . . . . . Traps Extracted . | . . . . . . . Installed . | . . . . . . . Triggered . | . . . . . . . Most Traps Carried 3 | . . 3 . . . . Machines | -11 -10 -10 -10 -9 -9 -6 ---------- Run | Yrd Mat Min Sub Rec Scr Fac Machines Disabled 5 | . . . 3 . 2 . Max in Single Turn 1 | . . . 1 . 1 . Machines Repaired . | . . . . . . . Machines Dismantled . | . . . . . . . Machines Sabotaged . | . . . . . . . Overloaded Fab Kills . | . . . . . . . Hacking | -11 -10 -10 -10 -9 -9 -6 --------- Run | Yrd Mat Min Sub Rec Scr Fac Machines Accessed 24 | . 7 2 3 11 1 . Terminals 12 | . 5 1 . 6 . . Fabricators . | . . . . . . . Repair Stations . | . . . . . . . Recycling Units 7 | . 2 . . 5 . . Scanalyzers . | . . . . . . . Garrison Access . | . . . . . . . Total Hacks 63 | . 25 2 4 31 1 . Successful 44 | . 15 2 4 22 1 . Failed 18 | . 9 . . 9 . . Catastrophic 2 | . 1 . . 1 . . Database Lockouts 1 | . 1 . . . . . Manual 41 | . 20 2 . 19 . . Terminals 38 | . 19 1 . 18 . . Fabricators . | . . . . . . . Repair Stations . | . . . . . . . Recycling Units 19 | . 6 . . 13 . . Scanalyzers . | . . . . . . . Garrison Access . | . . . . . . . Terminal Hacks 10 | . 2 1 4 2 1 . Record 2 | . . . 1 . 1 . Robot Schematic 1 | . . . . 1 . . Robot Analysis 1 | . 1 . . . . . Prototype ID Bank 1 | . . . . 1 . . Open Door 2 | . . 1 1 . . . Locate Traps 1 | . 1 . . . . . Proto ID Catalog 1 | . . . 1 . . . Release Object 1 | . . . 1 . . . Fabricator Hacks . | . . . . . . . Repair Station Hacks . | . . . . . . . Recycling Unit Hacks 6 | . 1 . . 5 . . Retrieve Components 6 | . 1 . . 5 . . Scanalyzer . | . . . . . . . Garrison Access Hacks . | . . . . . . . Unauthorized Hacks 28 | . 12 1 . 15 . . Terminals 22 | . 11 1 . 10 . . Botnet 11 | . 5 1 . 5 . . Operators 1 | . 1 . . . . . Skim 10 | . 5 . . 5 . . Fabricators . | . . . . . . . Repair Stations . | . . . . . . . Recycling Units 6 | . 1 . . 5 . . Tunnel 6 | . 1 . . 5 . . Scanalyzers . | . . . . . . . Garrison Access . | . . . . . . . Data Cores Recovered 1 | . 1 . . . . . Used . | . . . . . . . Hacking Detections 11 | . 6 . . 5 . . Full Trace Events 3 | . 1 . . 2 . . Feedback Events . | . . . . . . . Feedback Blocked . | . . . . . . . Robot Schematics Acquired 1 | . . . . 1 . . Robots Built . | . . . . . . . Authchips . | . . . . . . . Time . | . . . . . . . Total Robot Build Rating . | . . . . . . . Part Schematics Acquired . | . . . . . . . Parts Built . | . . . . . . . Authchips . | . . . . . . . Time . | . . . . . . . Total Part Build Rating . | . . . . . . . Part Studies Acquired . | . . . . . . . Parts Repaired . | . . . . . . . Time . | . . . . . . . Parts Recycled . | . . . . . . . Recycled Matter . | . . . . . . . Retrieved Matter . | . . . . . . . Retrieved Components 25 | . 9 . . 16 . . Parts Scanalyzed . | . . . . . . . Part Schematics Acquired . | . . . . . . . Parts Damaged . | . . . . . . . Bothacking | -11 -10 -10 -10 -9 -9 -6 ------------ Run | Yrd Mat Min Sub Rec Scr Fac Used RIF Installer . | . . . . . . . Robots Hacked . | . . . . . . . Non-combat . | . . . . . . . Combat . | . . . . . . . Robot Hacks Applied . | . . . . . . . Relay Couplers Released . | . . . . . . . Fabnet Peak Effective % . | . . . . . . . Robots Rewired . | . . . . . . . Allies Hacked . | . . . . . . . Hacks Repelled . | . . . . . . . Allies | -11 -10 -10 -10 -9 -9 -6 -------- Run | Yrd Mat Min Sub Rec Scr Fac Total Allies 8 | . . . 8 . . . Largest Group 6 | . . . 6 . . . Highest-Rated Group 114 | . . . 114 . . . Highest-Rated Ally 19 | . . . 19 . . . Total Orders . | . . . . . . . Ally Attacks 34 | . . . 34 . . . Total Damage 414 | . . . 414 . . . Kills 7 | . . . 7 . . . Allies Corrupted . | . . . . . . . Allies Melted 2 | . . 2 . . . . Intel | -11 -10 -10 -10 -9 -9 -6 ------- Run | Yrd Mat Min Sub Rec Scr Fac Active Infowar (turns) 2314 | 13 1262 538 501 . . . Seismic 2314 | 13 1262 538 501 . . . Robot Analysis Total 1 | . 1 . . . . . Derelict Logs Recovered 4 | . . 1 3 . . . Drone Launches . | . . . . . . . Drone Recoveries . | . . . . . . . Exploration | -11 -10 -10 -10 -9 -9 -6 ------------- Run | Yrd Mat Min Sub Rec Scr Fac Turns Passed 4804 | 163 1262 538 2039 517 282 3 Spaces Moved 5508 | 89 776 724 2594 802 519 4 Core 13 | 13 . . . . . . Treads 268 | 3 265 . . . . . Legs . | . . . . . . . Wheels 133 | 73 60 . . . . . Hover 5094 | . 451 724 2594 802 519 4 Flight . | . . . . . . . Fastest Speed 50 | 50 52 52 52 52 52 56 Average Speed 58 | 94 92 52 52 52 52 56 Slowest Speed 200 | 160 200 52 52 52 56 56 Overloaded Moves . | . . . . . . . Propulsion Burnouts . | . . . . . . . Robots Hopped . | . . . . . . . Potential Cave-ins . | . . . . . . . Cave-ins Triggered . | . . . . . . . Exploration Rate (%) 62 | 4 91 97 96 99 49 1 Regions Visited 6 Branch Regions 4 Pre-discovered Areas 7 | . 1 . 1 5 . . Known Exits Taken . | . . . . . . . Unknown Exits Taken 6 | 1 1 1 1 1 1 . Scrap Searched 12 | . . 1 9 . 2 . Spaces Dug . | . . . . . . . Terrain Destroyed . | . . . . . . . Melee . | . . . . . . . Projectile . | . . . . . . . AOE . | . . . . . . . Terrain Rammed . | . . . . . . . Walls Destroyed . | . . . . . . . Machines Disabled . | . . . . . . . Actions | -11 -10 -10 -10 -9 -9 -6 --------- Run | Yrd Mat Min Sub Rec Scr Fac Total 6636 | 121 1152 825 3151 859 524 4 Wait 760 | . 259 34 450 15 2 . Move 5502 | 88 775 723 2593 801 518 4 Hop . | . . . . . . . Pick Up 9 | . . 7 2 . . . Fast Attach 13 | 6 2 1 3 . 1 . Attach 1 | . . . 1 . . . Detach 1 | . . . 1 . . . Swap 11 | . 10 . . 1 . . Drop 14 | . 2 6 5 1 . . Fire 238 | 27 89 31 67 21 3 . Melee . | . . . . . . . Ram . | . . . . . . . Kick . | . . . . . . . Crush . | . . . . . . . Escape Stasis . | . . . . . . . Rewire 7 | . . . . 7 . . Trap . | . . . . . . . Miscellaneous 80 | . 15 23 29 13 . . Route ------- -11/Scrapyard -10/Materials (discovered 6 exits: *Mat x3 / *Min x2 / *Sub) -10/Mines (discovered 4 exits: *Mat x2 / [*Exi] / *Sub) -10/Subcaves (discovered 3 exits: [*Mat x2] / *Rec) -9/Recycling (discovered 2 exits: [*Fac] / *Scr) -9/Scraptown -6/Factory History --------- Turn | Location | Event 1 | -11/Scrapyard | Upgraded with Propulsion slot (x1) 1 | -11/Scrapyard | Upgraded with Utility slot (x1) 1 | -11/Scrapyard | Upgraded with Weapon slot (x1) 6 | -11/Scrapyard | Discovered new exit (range 15) 164 | -11/Scrapyard | Entered Materials 311 | -10/Materials | Build established: Mutant 403 | -10/Materials | Core integrity fell below 50% 605 | -10/Materials | Discovered new exit (range 13) 750 | -10/Materials | Central database locked down 805 | -10/Materials | Discovered new exit (range 16) 820 | -10/Materials | Build established: Scavenger-Mutant 918 | -10/Materials | Upgraded with Propulsion slot (x1) 977 | -10/Materials | Discovered new exit (range 15) 1036 | -10/Materials | Reached level 2 1050 | -10/Materials | Core integrity fell below 20% 1096 | -10/Materials | Discovered new exit (range 11) 1187 | -10/Materials | Build established: Mutant 1386 | -10/Materials | Identified exit to Materials 1426 | -10/Materials | Entered Mines 1428 | -10/Mines | Reached level 3 1456 | -10/Mines | Discovered new exit (range 8) 1470 | -10/Mines | A weapon hastily lodged in a ceiling crevice suddenly fell to the ground 1484 | -10/Mines | Received a Mining Laser from a helpful Derelict 1497 | -10/Mines | Deemed a non-threat by the Exiles lab entrance 1497 | -10/Mines | Discovered new exit (range 5) 1529 | -10/Mines | Found the Drone Emporium 1530 | -10/Mines | Found Prototype Device 1556 | -10/Mines | Received a Rocket Launcher from a helpful Derelict 1580 | -10/Mines | Found a hidden stash of uninstalled traps 1599 | -10/Mines | Discovered exit to Materials (range 8) 1605 | -10/Mines | Joined a pair of Derelicts in attacking an 0b10 outpost 1817 | -10/Mines | Discovered exit to Materials (range 5) 1964 | -10/Mines | Entered Subcaves 1965 | -10/Subcaves | Approached by a straggling Scientist 1965 | -10/Subcaves | Learned Materials garrison access intel 1966 | -10/Subcaves | Reached level 4 1981 | -10/Subcaves | Disturbed a concealed Subdweller 2007 | -10/Subcaves | Build established: Scavenger-Mutant 2063 | -10/Subcaves | Shifting Twisted Machinery released Sub. Laser 2064 | -10/Subcaves | Shifting Twisted Machinery released Mak. Hammer 2065 | -10/Subcaves | Shifting Twisted Machinery released Barrage Gun 2309 | -10/Subcaves | Visited 4L-MR0's lab 2436 | -10/Subcaves | Identified Bomb Drone Bay 2442 | -10/Subcaves | Found Tower Shield 2469 | -10/Subcaves | Discovered new exit (range 7) 2473 | -10/Subcaves | Shifting Twisted Machinery released Battle Rifle 2473 | -10/Subcaves | Visited triangular shrine 2477 | -10/Subcaves | Found Prototype Device 2477 | -10/Subcaves | Identified V3-11A's Pendant 2482 | -10/Subcaves | Befriended Subdweller 2494 | -10/Subcaves | Shifting Twisted Machinery released Enh. Flamer 2585 | -10/Subcaves | A swath of the cavern ceiling suddenly collapsed 2604 | -10/Subcaves | A swath of the cavern ceiling suddenly collapsed 2658 | -10/Subcaves | Released subatomizers from SUBCON Basin 2692 | -10/Subcaves | Befriended Subdweller 2707 | -10/Subcaves | Befriended Subdweller 2742 | -10/Subcaves | Befriended Subdweller 2742 | -10/Subcaves | Befriended Subdweller 2783 | -10/Subcaves | Build established: Mutant 2796 | -10/Subcaves | Discovered new exit (range 12) 2812 | -10/Subcaves | Befriended Subdweller 2866 | -10/Subcaves | Disturbed a concealed Subdweller 2867 | -10/Subcaves | Befriended Subdweller 2941 | -10/Subcaves | Discovered new exit (range 14) 2986 | -10/Subcaves | Lost 3 allies 3217 | -10/Subcaves | Befriended Subdweller 3305 | -10/Subcaves | Learned location of Zion (-7) 4003 | -10/Subcaves | Entered Recycling 4005 | -9/Recycling | Reached level 5 4202 | -9/Recycling | Discovered new exit (range 11) 4225 | -9/Recycling | Reached level 6 4507 | -9/Recycling | Scanned before Scraplab entrance 4514 | -9/Recycling | Entered Scraplab 4518 | -9/Recycling | Discovered new exit (range 3) 4520 | -9/Recycling | Entered Scraptown 4530 | -9/Scraptown | Heard Great Nut preacher, LISTEN AND RECITE! 4563 | -9/Scraptown | Delivered V3-11A's Pendant to T0-NE2 in exchange for information 4584 | -9/Scraptown | Visited Supply Room 4590 | -9/Scraptown | Visited Cave Peace 4717 | -9/Scraptown | Visited Cyclists 4736 | -9/Scraptown | Visited Science Testing Area 4740 | -9/Scraptown | Visited Spacefarers 4745 | -9/Scraptown | Visited Scrapoid Research Area 4751 | -9/Scraptown | Attacked by Scraptown defenders 4795 | -9/Scraptown | Discovered new exit (range 5) 4802 | -9/Scraptown | Entered Factory 4803 | -6/Factory | Core integrity fell below 50% 4803 | -6/Factory | Core integrity fell below 20% 4804 | -6/Factory | Reached level 7 4805 | -6/Factory | Self-destructed Last Messages --------------- 04771_ Bolt penetrates N0-8TC(x). 04772_ Slug penetrates LL-ZND(h). 04773_ Penetrated by Bolt. 04773_ OK-SRI(r) follow-up attacks with Ripteeth. 04774_ Bolt penetrates Wall. 04776_ CW-KVC(j): "Batten down the hatches, man the cannons, all bots on deck!" 04794_ Critical hit (Destroy). 04794_ Lgt. Nuclear Core destroyed. 04795_ EXIT=FOUND 04795_ WP-DQ9(c) exits level. 04798_ 9V-91X(c) exits level. 04798_ VT-G3T(c) destroyed. 04798_ C-Scrubber disabled. 04799_ OK-SRI(r) follow-up attacks with Ripteeth. 04799_ Beamcaster ripped off. 04801_ Acquired Tech Extrapolator. 04801_ Imp. Hover Unit ripped off. LOCATION=UNKNOWN GOAL=ESCAPE 04804_ Reached level 7. Map ----- +----------------------------------------------------+ | ??????????????????????????????????? | | ??????????????????????????????????? | | ??????????????????????????????????? | | ??????????????????????????????????? | | ??????????????????????????????????? | | ??????????????????????????????????? | | ??????????????????????????????????? | | ??????????????????????????????????? | | ??????????????????????????????????? | | ??????????????????????????????????? | | ??????????????????????????????????? | | ??????????????????????????????????? | | ??????????????????????????????????? | | ??????????????????????????????????? | | ??????????????????????????????????? | | ??????????????????????????????????? | | ??????????????????????????????????? | | ############??????????????????????? | | # #??????????????????????? | | # #??????????????????????? | | # #??????????????????????? | | # #######????????????????? | | # # #????????????????? | | # # #########????????? | | # # ????? | | #!!! @/ ????? | | #!! # ????? | | #!! # ?????? | | # # ?????? | | # ############### ??????? | | # #??????????????????????? | | # ! #??????????????????????? | | # #??????????????????????? | | ############??????????????????????? | | ??????????????????????????????????? | | ??????????????????????????????????? | | ??????????????????????????????????? | | ??????????????????????????????????? | | ??????????????????????????????????? | | ??????????????????????????????????? | | ??????????????????????????????????? | | ??????????????????????????????????? | | ??????????????????????????????????? | | ??????????????????????????????????? | | ??????????????????????????????????? | | ??????????????????????????????????? | | ??????????????????????????????????? | | ??????????????????????????????????? | | ??????????????????????????????????? | | ??????????????????????????????????? | +----------------------------------------------------+ Best States ------------- Heat Dissipation 47 Energy Generation 14 Energy Capacity 250 Matter Stores 300 Matter Capacity 300 Sight Range 16 Terrain Scan Density 10 Evasion (%) 54 Recoil Reduction 2 Item Schematics ----------------- None Robot Schematics ------------------ R-06 Scavenger | -9/Recycling | Hacked Fabricated ------------ Nothing Repaired ---------- Nothing Studied --------- None Alien Tech Used ----------------- None Achievements -------------- None Challenges ------------ None RPGLIKE | -11 -10 -10 -10 -9 -9 -6 --------- Run | Yrd Mat Min Sub Rec Scr Fac Levels Raised 6 | . 1 1 1 2 . 1 XP Earned 12897 | 3000 2680 1100 1867 2250 500 1500 XP Spent 4800 | 1500 800 1500 1000 . . . Upgrades 8 | 3 1 3 1 . . . Propulsion Slot 2 | 1 1 . . . . . Utility Slot 1 | 1 . . . . . . Weapon Slot 1 | 1 . . . . . . Inventory Capacity 4 | . . 3 1 . . . Protomatter Created 624 | . 226 163 89 146 . . Integrity Restored 1681 | . 330 505 598 248 . . Core 1450 | . 330 445 508 167 . . Parts 231 | . . 60 90 81 . . Protomatter Decayed 137 | . 35 . 73 29 . . Game ------ Seed CobblerEnergyAutocannon Manual? 0 Play Time 00:40:25 Cumulative 407.7 hours Start 2026.04.28 @ 06:11:56 End 2026.04.28 @ 06:55:10 Sessions 2 Manual Loads 0 Difficulty Rogue Special Mode Winter2019/RPGLIKE Game No. 310 Rogue 310 Adventurer 0 Explorer 0 Win Type - Total 26 Types 15/0/8/2/0/0/0/0/1/0 Lore% 89 Gallery% 80 Achievement% 70 Wizard Run 0 Options --------- Layout 0 ASCII 0 Keyboard 0 Movement Numpad Keybinds 0 Fullscreen 1 Font 24/Smallcaps Map View 113x50 Zoom Use 0% Tactical HUD 1 Map Filters NONE Filters NONE Steam 1 RUN: 2b9901db-9459-43d1-aad1-1076885eec89